fUST/lending_fUST_20260205
["ID","MTS","AMOUNT","RATE_DAILY","PERIOD"]
[404548842,1770278258064,-780.7,0.0005589,120]
[404548843,1770278258120,-500.0,0.0005589,120]
[404548844,1770278258175,-500.0,0.0005589,120]
[404548845,1770278258223,-500.0,0.0005589,120]
[404548846,1770278258270,-500.0,0.0005589,120]
[404548847,1770278258321,-532.75973349,0.0005589,120]
[404548848,1770278258373,-500.0,0.0005589,120]
[404548849,1770278258425,-674.29,0.0005589,120]
[404548850,1770278258479,-529.49484185,0.0005589,120]
[404548851,1770278258534,-574.49,0.0005589,120]
[404548852,1770278258592,-500.0,0.0005589,120]
[404548853,1770278258649,-482.18046689,0.0005589,120]
[404548854,1770278258707,-500.0,0.0005589,120]
[404548855,1770278258763,-819.11,0.0005589,120]
[404548856,1770278258822,-720.66,0.0005589,120]
[404548857,1770278258879,-550.92453552,0.0005589,120]
[404548858,1770278258937,-549.05929405,0.0005589,120]
[404548859,1770278258991,-500.0,0.0005589,120]
[404548860,1770278259049,-500.0,0.0005589,120]
[404548861,1770278259106,-500.0,0.0005589,120]
[404548862,1770278259161,-598.10517263,0.0005589,120]
[404548863,1770278259213,-500.0,0.0005589,120]
[404548864,1770278259263,-500.0,0.0005589,120]
[404548865,1770278259312,-500.0,0.0005589,120]
[404548866,1770278259362,-500.0,0.0005589,120]
[404548867,1770278259413,-500.0,0.0005589,120]
[404548868,1770278259464,-567.45836178,0.0005589,120]
[404548869,1770278259515,-438.65174797,0.0005589,120]
[404548870,1770278259569,-500.0,0.0005589,120]
[404548871,1770278259623,-500.0,0.0005589,120]
[404548872,1770278259676,-155.98323797,0.0005589,120]
[404548873,1770278259731,-500.0,0.0005589,120]
[404548874,1770278259791,-500.0,0.0005589,54]
[404548875,1770278259846,-625.62441372,0.0005589,120]
[404548876,1770278259900,-500.0,0.0005589,60]
[404548877,1770278259955,-500.0,0.0005589,120]
[404548878,1770278260009,-659.27,0.0005589,120]
[404548879,1770278260063,-550.0,0.0005589,30]
[404548880,1770278260117,-500.0,0.0005589,120]
[404548881,1770278260251,-1139.7,0.0005589,120]
[404548882,1770278260305,-500.0,0.0005589,120]
[404548883,1770278260358,-500.0,0.0005589,120]
[404548884,1770278260412,-500.0,0.0005589,120]
[404548885,1770278260462,-500.0,0.0005589,120]
[404548886,1770278260513,-500.0,0.0005589,120]
[404548887,1770278260567,-510.316571,0.0005589,120]
[404548888,1770278260622,-500.0,0.0005589,120]
[404548889,1770278260677,-2407.29,0.0005589,120]
[404548890,1770278260729,-500.0,0.0005589,120]
[404548891,1770278260782,-500.0,0.0005589,120]
[404548892,1770278260835,-500.0,0.0005589,120]
[404548893,1770278260885,-556.98561532,0.0005589,120]
[404548894,1770278260936,-500.0,0.0005589,120]
[404548895,1770278260988,-704.05,0.0005589,120]
[404548896,1770278261041,-150.0,0.0005589,120]
[404548897,1770278261094,-500.0,0.0005589,120]
[404548898,1770278261148,-151.0,0.0005589,120]
[404548899,1770278261199,-151.0,0.0005589,120]
[404548900,1770278261249,-500.0,0.0005589,120]
[404548901,1770278261300,-945.4,0.0005589,120]
[404548902,1770278261351,-161.82,0.00056301,120]
[404548903,1770278261403,-500.0,0.00056438,30]
[404548904,1770278261454,-818.26,0.00056438,120]
[404548905,1770278261504,-584.19,0.00056438,120]
[404548906,1770278261555,-884.33,0.00056438,120]
[404548907,1770278261608,-2441.21,0.00056438,120]
[404548908,1770278261657,-500.0,0.00056438,120]
[404548909,1770278261706,-500.0,0.00056438,120]
[404548910,1770278261760,-500.0,0.00056438,120]
[404548911,1770278261814,-500.0,0.00056438,120]
[404548912,1770278261869,-500.0,0.00056438,120]
[404548913,1770278261922,-338.41603075,0.00056438,120]
[404548914,1770278261976,-500.0,0.00056438,120]
[404548915,1770278262031,-500.0,0.00056438,120]
[404548916,1770278262089,-166.21023259,0.00056438,120]
[404548917,1770278262144,-812.05,0.00056438,120]
[404548918,1770278262199,-500.0,0.00056438,120]
[404548919,1770278262255,-500.0,0.00056438,120]
[404548920,1770278262312,-2641.29,0.00056438,120]
[404548921,1770278262370,-759.38,0.00056438,120]
[404548922,1770278262426,-500.0,0.00056438,120]
[404548923,1770278262482,-500.0,0.00056438,120]
[404548924,1770278262535,-538.73,0.00056438,120]
[404548925,1770278262586,-500.0,0.00056438,120]
[404548926,1770278262638,-500.0,0.00056438,120]
[404548927,1770278262689,-607.89749218,0.00056438,120]
[404548928,1770278262740,-500.0,0.00056438,120]
[404548929,1770278262798,-538.38,0.00056438,120]
[404548930,1770278262852,-577.35286007,0.00056438,120]
[404548931,1770278262903,-506.60462948,0.00056438,120]
[404548932,1770278262955,-500.0,0.00056438,120]
[404548933,1770278263009,-500.0,0.00056438,120]
[404548934,1770278263063,-500.0,0.00056438,120]
[404548935,1770278263118,-500.0,0.00056438,120]
[404548936,1770278263171,-500.0,0.00056438,120]
[404548937,1770278263227,-500.0,0.00056438,120]
[404548938,1770278263280,-218.51432667,0.00056438,120]
[404548939,1770278263335,-151.0,0.00056438,120]
[404548940,1770278263388,-151.0,0.00056438,120]
[404548941,1770278263441,-500.0,0.00056438,120]
[404548942,1770278263494,-217.15672281,0.00056438,120]
[404548943,1770278263548,-604.00199303,0.00056438,120]
[404548944,1770278263601,-212.79704955,0.00056438,120]
[404548945,1770278263649,-500.0,0.00056438,120]
[404548946,1770278263699,-500.0,0.00056438,120]
[404548947,1770278263752,-500.0,0.00056438,120]
[404548948,1770278263805,-500.0,0.00056438,120]
[404548949,1770278263861,-500.0,0.00056438,120]
[404548950,1770278263912,-500.0,0.00056438,120]
[404548951,1770278263965,-200.0,0.00056438,120]
[404548952,1770278264017,-173.54262558,0.00056438,120]
[404548953,1770278264072,-536.73499895,0.00056438,120]
[404548954,1770278264127,-500.0,0.00056438,120]
[404548955,1770278264181,-500.0,0.00056438,120]
[404548956,1770278264320,-500.0,0.00056438,120]
[404548957,1770278264374,-780.7,0.00056438,120]
[404548958,1770278264428,-500.0,0.00056438,120]
[404548959,1770278264483,-201.37206839,0.00056438,120]
[404548960,1770278264563,-500.0,0.00056438,120]
[404548961,1770278264651,-500.0,0.00056438,120]
[404548962,1770278264733,-500.0,0.00056438,120]
[404548963,1770278264815,-674.29,0.00056438,120]
[404548964,1770278264890,-574.49,0.00056438,120]
[404548965,1770278264945,-161.01608092,0.00056438,120]
[404548966,1770278265000,-500.0,0.00056438,120]
[404548967,1770278265054,-819.11,0.00056438,120]
[404548968,1770278265108,-720.66,0.00056438,120]
[404548969,1770278265161,-500.0,0.00056438,120]
[404548970,1770278265211,-500.0,0.00056438,120]
[404548971,1770278265264,-500.0,0.00056438,120]
[404548972,1770278265315,-165.69869042,0.00056438,120]
[404548973,1770278265370,-553.53179889,0.00056438,120]
[404548974,1770278265422,-411.54909807,0.00056438,120]
[404548975,1770278265478,-500.0,0.00056438,120]
[404548976,1770278265532,-168.14083568,0.00056438,120]
[404548977,1770278265587,-500.0,0.00056438,120]
[404548978,1770278265641,-348.75126238,0.00056438,120]
[404548979,1770278265695,-500.0,0.00056438,54]
[404548980,1770278265753,-507.22762645,0.00056438,60]
[404548981,1770278265805,-500.0,0.00056438,120]
[404548982,1770278265858,-151.0,0.00056438,120]
[404548983,1770278265910,-151.0,0.00056438,120]
[404548984,1770278265960,-659.27,0.00056438,120]
[404548985,1770278266010,-550.0,0.00056438,30]
[404548986,1770278266064,-500.0,0.00056438,120]
[404548987,1770278266120,-1139.7,0.00056438,120]
[404548988,1770278266172,-500.0,0.00056438,120]
[404548989,1770278266223,-535.55943253,0.00056438,120]
[404548990,1770278266271,-500.0,0.00056438,120]
[404548991,1770278266318,-500.0,0.00056438,120]
[404548992,1770278266371,-500.0,0.00056438,120]
[404548993,1770278266424,-500.0,0.00056438,120]
[404548994,1770278266482,-2407.29,0.00056438,120]
[404548995,1770278266536,-559.24109974,0.00056438,120]
[404548996,1770278266589,-264.63704227,0.00056438,120]
[404548997,1770278266641,-500.0,0.00056438,120]
[404548998,1770278266694,-500.0,0.00056438,120]
[404548999,1770278266747,-704.05,0.00056438,120]
[404549000,1770278266803,-152.53185421,0.00056438,120]
[404549001,1770278266857,-548.43586158,0.00056438,120]
[404549002,1770278266911,-500.0,0.00056438,120]
[404549003,1770278266963,-945.4,0.00056438,120]
[404549004,1770278267015,-179.0,0.00056502,120]
[404549005,1770278267067,-420.0,0.00056502,120]
[404549006,1770278267122,-155.0,0.000567,120]
[404549007,1770278267174,-500.0,0.00056986,30]
[404549008,1770278267227,-818.26,0.00056986,120]
[404549009,1770278267279,-584.19,0.00056986,120]
[404549010,1770278267333,-884.33,0.00056986,120]
[404549011,1770278267383,-2441.21,0.00056986,120]
[404549012,1770278267433,-500.0,0.00056986,120]
[404549013,1770278267485,-458.67055965,0.00056986,120]
[404549014,1770278267537,-500.0,0.00056986,120]
[404549015,1770278267590,-500.0,0.00056986,120]
[404549016,1770278267644,-500.0,0.00056986,120]
[404549017,1770278267696,-550.29552402,0.00056986,120]
[404549018,1770278267750,-161.82,0.00056986,120]
[404549019,1770278267802,-812.05,0.00056986,120]
[404549020,1770278267854,-329.65360962,0.00056986,120]
[404549021,1770278267905,-526.70253161,0.00056986,120]
[404549022,1770278267956,-2641.29,0.00056986,120]
[404549023,1770278268009,-759.38,0.00056986,120]
[404549024,1770278268061,-264.11247201,0.00056986,120]
[404549025,1770278268114,-500.0,0.00056986,120]
[404549026,1770278268164,-538.73,0.00056986,120]
[404549027,1770278268214,-500.0,0.00056986,120]
[404549028,1770278268263,-500.0,0.00056986,120]
[404549029,1770278268399,-500.0,0.00056986,120]
[404549030,1770278268454,-538.38,0.00056986,120]
[404549031,1770278268508,-500.0,0.00056986,120]
[404549032,1770278268562,-500.0,0.00056986,120]
[404549033,1770278268613,-500.0,0.00056986,120]
[404549034,1770278268666,-500.0,0.00056986,120]
[404549035,1770278268715,-500.0,0.00056986,120]
[404549036,1770278268764,-320.15415193,0.00056986,120]
[404549037,1770278268812,-500.0,0.00056986,120]
[404549038,1770278268865,-513.6191975,0.00056986,120]
[404549039,1770278268916,-500.0,0.00056986,120]
[404549040,1770278268970,-500.0,0.00056986,120]
[404549041,1770278269026,-500.0,0.00056986,120]
[404549042,1770278269083,-500.0,0.00056986,120]
[404549043,1770278269140,-200.0,0.00056986,120]
[404549044,1770278269195,-500.0,0.00056986,120]
[404549045,1770278269249,-500.0,0.00056986,120]
[404549046,1770278269303,-500.0,0.00056986,120]
[404549047,1770278269357,-780.7,0.00056986,120]
[404549048,1770278269412,-500.0,0.00056986,120]
[404549049,1770278269465,-500.0,0.00056986,120]
[404549050,1770278269518,-500.0,0.00056986,120]
[404549051,1770278269573,-500.0,0.00056986,120]
[404549052,1770278269629,-674.29,0.00056986,120]
[404549053,1770278269684,-574.49,0.00056986,120]
[404549054,1770278269739,-500.0,0.00056986,120]
[404549055,1770278269798,-819.11,0.00056986,120]
[404549056,1770278269853,-720.66,0.00056986,120]
[404549057,1770278269909,-500.0,0.00056986,120]
[404549058,1770278269964,-500.0,0.00056986,120]
[404549059,1770278270019,-199.74652917,0.00056986,120]
[404549060,1770278270073,-499.14787677,0.00056986,120]
[404549061,1770278270126,-325.41319576,0.00056986,120]
[404549062,1770278270181,-500.0,0.00056986,54]
[404549063,1770278270234,-180.70552958,0.00056986,120]
[404549064,1770278270282,-659.27,0.00056986,120]
[404549065,1770278270328,-550.0,0.00056986,30]
[404549066,1770278270376,-500.0,0.00056986,120]
[404549067,1770278270424,-1139.7,0.00056986,120]
[404549068,1770278270470,-500.0,0.00056986,120]
[404549069,1770278270518,-595.82288384,0.00056986,120]
[404549070,1770278270566,-2407.29,0.00056986,120]
[404549071,1770278270615,-500.0,0.00056986,120]
[404549072,1770278270662,-500.0,0.00056986,120]
[404549073,1770278270710,-704.05,0.00056986,120]
[404549074,1770278270758,-500.0,0.00056986,120]
[404549075,1770278270812,-945.4,0.00056986,120]
[404549076,1770278270866,-1052.95012583,0.00057,120]
[404549077,1770278270916,-500.0,0.00057534,30]
[404549078,1770278270968,-818.26,0.00057534,120]
[404549079,1770278271020,-584.19,0.00057534,120]
[404549080,1770278271074,-884.33,0.00057534,120]
[404549081,1770278271127,-2441.21,0.00057534,120]
[404549082,1770278271175,-500.0,0.00057534,120]
[404549083,1770278271222,-500.0,0.00057534,120]
[404549084,1770278271269,-500.0,0.00057534,120]
[404549085,1770278271315,-500.0,0.00057534,120]
[404549086,1770278271362,-812.05,0.00057534,120]
[404549087,1770278271408,-2641.29,0.00057534,120]
[404549088,1770278271458,-759.38,0.00057534,120]
[404549089,1770278271512,-500.0,0.00057534,120]
[404549090,1770278271565,-538.73,0.00057534,120]
[404549091,1770278271617,-500.0,0.00057534,120]
[404549092,1770278271669,-158.11687124,0.00057534,120]
[404549093,1770278271723,-500.0,0.00057534,120]
[404549094,1770278271778,-538.38,0.00057534,120]
[404549095,1770278271836,-500.0,0.00057534,120]
[404549096,1770278271892,-500.0,0.00057534,120]
[404549097,1770278271949,-500.0,0.00057534,120]
[404549098,1770278272006,-400.04043899,0.00057534,120]
[404549099,1770278272140,-500.0,0.00057534,120]
[404549100,1770278272197,-625.09987688,0.00057534,120]
[404549101,1770278272253,-500.0,0.00057534,120]
[404549102,1770278272305,-500.0,0.00057534,120]
[404549103,1770278272359,-500.0,0.00057534,120]
[404549104,1770278272412,-500.0,0.00057534,120]
[404549105,1770278272464,-200.0,0.00057534,120]
[404549106,1770278272518,-500.0,0.00057534,120]
[404549107,1770278272573,-500.0,0.00057534,120]
[404549108,1770278272626,-313.20950864,0.00057534,120]
[404549109,1770278272677,-780.7,0.00057534,120]
[404549110,1770278272727,-583.17387512,0.00057534,120]
[404549111,1770278272776,-500.0,0.00057534,120]
[404549112,1770278272828,-500.0,0.00057534,120]
[404549113,1770278272885,-500.0,0.00057534,120]
[404549114,1770278272935,-674.29,0.00057534,120]
[404549115,1770278272985,-574.49,0.00057534,120]
[404549116,1770278273037,-500.0,0.00057534,120]
[404549117,1770278273089,-819.11,0.00057534,120]
[404549118,1770278273140,-720.66,0.00057534,120]
[404549119,1770278273191,-639.99241071,0.00057534,120]
[404549120,1770278273243,-500.0,0.00057534,120]
[404549121,1770278273293,-500.0,0.00057534,54]
[404549122,1770278273344,-659.27,0.00057534,120]
[404549123,1770278273395,-550.0,0.00057534,30]
[404549124,1770278273448,-500.0,0.00057534,120]
[404549125,1770278273504,-1139.7,0.00057534,120]
[404549126,1770278273558,-158.62031361,0.00057534,120]
[404549127,1770278273616,-2407.29,0.00057534,120]
[404549128,1770278273668,-500.0,0.00057534,120]
[404549129,1770278273726,-638.28,0.00057534,120]
[404549130,1770278273779,-704.05,0.00057534,120]
[404549131,1770278273837,-285.791981,0.00057534,120]
[404549132,1770278273891,-214.924333,0.00057534,120]
[404549133,1770278273945,-500.0,0.00057534,120]
[404549134,1770278273999,-945.4,0.00057534,120]
[404549135,1770278274054,-161.82,0.00057671,120]
[404549136,1770278274111,-791.79194958,0.00058,90]
[404549137,1770278274165,-500.0,0.00058082,30]
[404549138,1770278274217,-818.26,0.00058082,120]
[404549139,1770278274266,-584.19,0.00058082,120]
[404549140,1770278274318,-884.33,0.00058082,120]
[404549141,1770278274370,-2441.21,0.00058082,120]
[404549142,1770278274421,-500.0,0.00058082,120]
[404549143,1770278274473,-500.0,0.00058082,120]
[404549144,1770278274526,-500.0,0.00058082,120]
[404549145,1770278274582,-500.0,0.00058082,120]
[404549146,1770278274640,-812.05,0.00058082,120]
[404549147,1770278274695,-2641.29,0.00058082,120]
[404549148,1770278274750,-759.38,0.00058082,120]
[404549149,1770278274808,-500.0,0.00058082,120]
[404549150,1770278274862,-538.73,0.00058082,120]
[404549151,1770278274917,-500.0,0.00058082,120]
[404549152,1770278274970,-500.0,0.00058082,120]
[404549153,1770278275025,-538.38,0.00058082,120]
[404549154,1770278275080,-500.0,0.00058082,120]
[404549155,1770278275136,-500.0,0.00058082,120]
[404549156,1770278275186,-500.0,0.00058082,120]
[404549157,1770278275236,-500.0,0.00058082,120]
[404549158,1770278275283,-500.0,0.00058082,120]
[404549159,1770278275338,-500.0,0.00058082,120]
[404549160,1770278275389,-500.0,0.00058082,120]
[404549161,1770278275439,-239.9353917,0.00058082,120]
[404549162,1770278275490,-200.0,0.00058082,120]
[404549163,1770278275543,-500.0,0.00058082,120]
[404549164,1770278275598,-500.0,0.00058082,120]
[404549165,1770278275651,-780.7,0.00058082,120]
[404549166,1770278275817,-500.0,0.00058082,120]
[404549167,1770278275873,-500.0,0.00058082,120]
[404549168,1770278275925,-500.0,0.00058082,120]
[404549169,1770278275973,-674.29,0.00058082,120]
[404549170,1770278276026,-574.49,0.00058082,120]
[404549171,1770278276077,-500.0,0.00058082,120]
[404549172,1770278276129,-819.11,0.00058082,120]
[404549173,1770278276180,-720.66,0.00058082,120]
[404549174,1770278276230,-500.0,0.00058082,120]
[404549175,1770278276279,-500.0,0.00058082,54]
[404549176,1770278276329,-151.0,0.00058082,120]
[404549177,1770278276382,-266.819074,0.00058082,120]
[404549178,1770278276434,-659.27,0.00058082,120]
[404549179,1770278276485,-550.0,0.00058082,30]
[404549180,1770278276539,-500.0,0.00058082,120]
[404549181,1770278276594,-1139.7,0.00058082,120]
[404549182,1770278276650,-2407.29,0.00058082,120]
[404549183,1770278276704,-500.0,0.00058082,120]
[404549184,1770278276761,-704.05,0.00058082,120]
[404549185,1770278276815,-500.0,0.00058082,120]
[404549186,1770278276871,-945.4,0.00058082,120]
[404549187,1770278276928,-161.82,0.00058356,120]
[404549188,1770278276983,-155.0,0.000584,120]
[404549189,1770278277038,-175.947,0.0005861,120]
[404549190,1770278277094,-1372.0,0.0005861,120]
[404549191,1770278277148,-150.0,0.0005861,120]
[404549192,1770278277200,-500.0,0.0005863,30]
[404549193,1770278277253,-818.26,0.0005863,120]
[404549194,1770278277306,-584.19,0.0005863,120]
[404549195,1770278277358,-884.33,0.0005863,120]
[404549196,1770278277410,-2441.21,0.0005863,120]
[404549197,1770278277463,-500.0,0.0005863,120]
[404549198,1770278277516,-500.0,0.0005863,120]
[404549199,1770278277571,-500.0,0.0005863,120]
[404549200,1770278277624,-500.0,0.0005863,120]
[404549201,1770278277675,-812.05,0.0005863,120]
[404549202,1770278277724,-2641.29,0.0005863,120]
[404549203,1770278277774,-759.38,0.0005863,120]
[404549204,1770278277824,-500.0,0.0005863,120]
[404549205,1770278277872,-538.73,0.0005863,120]
[404549206,1770278277920,-500.0,0.0005863,120]
[404549207,1770278277969,-500.0,0.0005863,120]
[404549208,1770278278022,-538.38,0.0005863,120]
[404549209,1770278278078,-500.0,0.0005863,120]
[404549210,1770278278137,-500.0,0.0005863,120]
[404549211,1770278278190,-500.0,0.0005863,120]
[404549212,1770278278241,-500.0,0.0005863,120]
[404549213,1770278278291,-500.0,0.0005863,120]
[404549214,1770278278342,-500.0,0.0005863,120]
[404549215,1770278278395,-500.0,0.0005863,120]
[404549216,1770278278448,-200.0,0.0005863,120]
[404549217,1770278278502,-500.0,0.0005863,120]
[404549218,1770278278554,-500.0,0.0005863,120]
[404549219,1770278278605,-780.7,0.0005863,120]
[404549220,1770278278655,-458.41349744,0.0005863,120]
[404549221,1770278278703,-358.58685424,0.0005863,120]
[404549222,1770278278754,-500.0,0.0005863,120]
[404549223,1770278278801,-674.29,0.0005863,120]
[404549224,1770278278848,-574.49,0.0005863,120]
[404549225,1770278278893,-500.0,0.0005863,120]
[404549226,1770278278938,-819.11,0.0005863,120]
[404549227,1770278278983,-720.66,0.0005863,120]
[404549228,1770278279030,-500.0,0.0005863,120]
[404549229,1770278279081,-500.0,0.0005863,54]
[404549230,1770278279132,-659.27,0.0005863,120]
[404549231,1770278279183,-214.20703904,0.0005863,30]
[404549232,1770278279321,-500.0,0.0005863,120]
[404549233,1770278279378,-1139.7,0.0005863,120]
[404549234,1770278279435,-2407.29,0.0005863,120]
[404549235,1770278279489,-500.0,0.0005863,120]
[404549236,1770278279544,-704.05,0.0005863,120]
[404549237,1770278279602,-500.0,0.0005863,120]
[404549238,1770278279657,-945.4,0.0005863,120]
[404549239,1770278279713,-3000.0,0.000589,120]
[404549240,1770278279769,-660.5,0.00058982,120]
[404549241,1770278279825,-161.82,0.00059041,120]
[404549242,1770278279880,-500.0,0.00059178,30]
[404549243,1770278279934,-818.26,0.00059178,120]
[404549244,1770278279989,-584.19,0.00059178,120]
[404549245,1770278280043,-884.33,0.00059178,120]
[404549246,1770278280101,-2441.21,0.00059178,120]
[404549247,1770278280157,-500.0,0.00059178,120]
[404549248,1770278280216,-500.0,0.00059178,120]
[404549249,1770278280276,-500.0,0.00059178,120]
[404549250,1770278280333,-500.0,0.00059178,120]
[404549251,1770278280396,-812.05,0.00059178,120]
[404549252,1770278280454,-2641.29,0.00059178,120]
[404549253,1770278280514,-759.38,0.00059178,120]
[404549254,1770278280573,-500.0,0.00059178,120]
[404549255,1770278280634,-538.73,0.00059178,120]
[404549256,1770278280692,-500.0,0.00059178,120]
[404549257,1770278280749,-358.34945408,0.00059178,120]
[404549258,1770278280807,-538.38,0.00059178,120]
[404549259,1770278280862,-500.0,0.00059178,120]
[404549260,1770278280915,-500.0,0.00059178,120]
[404549261,1770278280967,-500.29392046,0.00059178,120]
[404549262,1770278281022,-500.0,0.00059178,120]
[404549263,1770278281075,-500.0,0.00059178,120]
[404549264,1770278281128,-500.0,0.00059178,120]
[404549265,1770278281182,-571.53124556,0.00059178,120]
[404549266,1770278281233,-200.0,0.00059178,120]
[404549267,1770278281285,-505.30446025,0.00059178,120]
[404549268,1770278281341,-500.0,0.00059178,120]
[404549269,1770278281394,-780.7,0.00059178,120]
[404549270,1770278281450,-500.0,0.00059178,120]
[404549271,1770278281507,-674.29,0.00059178,120]
[404549272,1770278281562,-574.49,0.00059178,120]
[404549273,1770278281617,-500.0,0.00059178,120]
[404549274,1770278281671,-819.11,0.00059178,120]
[404549275,1770278281726,-720.66,0.00059178,120]
[404549276,1770278281781,-500.0,0.00059178,120]
[404549277,1770278281841,-500.0,0.00059178,54]
[404549278,1770278281899,-151.0,0.00059178,120]
[404549279,1770278281957,-659.27,0.00059178,120]
[404549280,1770278282016,-500.0,0.00059178,120]
[404549281,1770278282074,-1139.7,0.00059178,120]
[404549282,1770278282135,-2407.29,0.00059178,120]
[404549283,1770278282191,-500.0,0.00059178,120]
[404549284,1770278282259,-704.05,0.00059178,120]
[404549285,1770278282320,-500.0,0.00059178,120]
[404549286,1770278282378,-945.4,0.00059178,120]
[404549287,1770278282435,-162.463,0.00059502,120]
[404549288,1770278282494,-420.0,0.00059502,120]
[404549289,1770278282560,-500.0,0.00059726,30]
[404549290,1770278282618,-818.26,0.00059726,120]
[404549291,1770278282673,-584.19,0.00059726,120]
[404549292,1770278282728,-884.33,0.00059726,120]
[404549293,1770278282784,-2441.21,0.00059726,120]
[404549294,1770278282837,-500.0,0.00059726,120]
[404549295,1770278282888,-500.0,0.00059726,120]
[404549296,1770278283058,-500.0,0.00059726,120]
[404549297,1770278283116,-500.0,0.00059726,120]
[404549298,1770278283175,-161.82,0.00059726,120]
[404549299,1770278283231,-812.05,0.00059726,120]
[404549300,1770278283286,-2641.29,0.00059726,120]
[404549301,1770278283340,-759.38,0.00059726,120]
[404549302,1770278283397,-221.14108839,0.00059726,120]
[404549303,1770278283453,-538.73,0.00059726,120]
[404549304,1770278283509,-500.0,0.00059726,120]
[404549305,1770278283568,-538.38,0.00059726,120]
[404549306,1770278283623,-500.0,0.00059726,120]
[404549307,1770278283678,-500.0,0.00059726,120]
[404549308,1770278283733,-500.0,0.00059726,120]
[404549309,1770278283790,-500.0,0.00059726,120]
[404549310,1770278283847,-504.52451878,0.00059726,120]
[404549311,1770278283905,-200.0,0.00059726,120]
[404549312,1770278283964,-500.0,0.00059726,120]
[404549313,1770278284025,-780.7,0.00059726,120]
[404549314,1770278284084,-500.0,0.00059726,120]
[404549315,1770278284144,-674.29,0.00059726,120]
[404549316,1770278284201,-574.49,0.00059726,120]
[404549317,1770278284261,-500.0,0.00059726,120]
[404549318,1770278284318,-819.11,0.00059726,120]
[404549319,1770278284375,-720.66,0.00059726,120]
[404549320,1770278284432,-500.0,0.00059726,120]
[404549321,1770278284490,-500.0,0.00059726,54]
[404549322,1770278284550,-659.27,0.00059726,120]
[404549323,1770278284607,-500.0,0.00059726,120]
[404549324,1770278284666,-1139.7,0.00059726,120]
[404549325,1770278284729,-2407.29,0.00059726,120]
[404549326,1770278284784,-500.0,0.00059726,120]
[404549327,1770278284842,-704.05,0.00059726,120]
[404549328,1770278284900,-500.0,0.00059726,120]
[404549329,1770278284958,-945.4,0.00059726,120]
[404549330,1770278285016,-16633.8892366,0.00059964,120]
[404549331,1770278285074,-27918.95952885,0.00059998,30]
[404549332,1770278285133,-205.94335388,0.0006,120]
[404549333,1770278285187,-1000.0,0.0006,120]
[404549334,1770278285241,-200.0,0.0006,120]
[404549335,1770278285297,-155.0,0.000601,120]
[404549336,1770278285351,-500.0,0.00060273,30]
[404549337,1770278285405,-818.26,0.00060273,120]
[404549338,1770278285461,-584.19,0.00060273,120]
[404549339,1770278285515,-884.33,0.00060273,120]
[404549340,1770278285585,-2441.21,0.00060273,120]
[404549341,1770278285641,-511.24736907,0.00060273,120]